bitfinex/quotes_ETHUSD_20241120
["timestamp","ask_amount","ask_price","bid_price","bid_amount"]
[1732119541899,0.02467881,3097.1,3096.0,0.55]
[1732119542109,0.02467881,3097.1,3095.8,0.55]
[1732119542312,0.02467881,3097.1,3095.8,3.55]
[1732119542454,0.8298,3097.2,3096.0,0.55]
[1732119542654,0.8298,3097.2,3096.2,0.55]
[1732119542850,0.8298,3097.2,3096.4,1.3034]
[1732119543053,0.02467881,3098.6,3096.5,0.03228723]
[1732119543054,0.7878,3097.6,3096.5,0.03228723]
[1732119543302,0.18958166,3098.6,3096.0,0.55]
[1732119543303,0.7878,3097.4,3096.0,0.55]
[1732119543523,0.81247881,3097.3,3096.0,0.55]
[1732119543719,0.81247881,3097.3,3096.0,0.58229528]
[1732119543875,0.81247881,3097.3,3096.0,0.55]
[1732119544503,0.7878,3097.3,3096.0,0.55]
[1732119544800,0.7878,3097.3,3096.2,0.55]
[1732119545007,0.7878,3097.3,3096.3,0.03229289]
[1732119545151,0.17106292,3098.2,3096.7,0.8294]
[1732119545152,0.7866,3097.9,3096.7,0.8294]
[1732119545351,0.7866,3097.9,3096.8,0.58228583]
[1732119545556,0.02467881,3097.8,3096.8,0.55]
[1732119545780,0.7866,3097.9,3097.0,0.55]
[1732119545995,0.7866,3097.9,3097.1,0.03228487]
[1732119546255,0.8307,3098.8,3097.2,0.55]
[1732119546555,0.01,3099.4,3096.8,0.03228328]
[1732119546556,0.8307,3098.6,3096.9,0.55]
[1732119546799,0.8307,3098.6,3097.0,0.03228247]
[1732119546800,0.02467881,3098.5,3097.0,0.03228247]
[1732119547010,0.02467881,3098.5,3097.2,3.0]
[1732119547221,0.02467881,3098.5,3097.6,3.0]
[1732119547498,0.8307,3098.6,3097.3,0.355]
[1732119547499,0.8307,3098.6,3097.8,0.55]
[1732119547900,0.8307,3098.6,3097.6,0.55]
[1732119548055,0.8307,3098.6,3097.7,0.03227672]
[1732119548255,0.8307,3098.6,3097.8,0.55]
[1732119548457,0.02467881,3099.9,3098.1,0.55]
[1732119548716,0.7655,3099.8,3098.3,1.3761]
[1732119548863,0.7655,3099.8,3098.5,0.55]
[1732119549061,0.7655,3099.8,3098.4,0.03226798]
[1732119549062,0.7655,3099.8,3098.7,0.55]
[1732119551761,0.7655,3099.4,3098.4,3.0]
[1732119552000,0.7655,3099.4,3097.8,0.8261]
[1732119552001,0.7655,3099.2,3097.8,0.8261]
[1732119552174,0.7655,3099.2,3097.4,0.03226856]
[1732119552175,0.79017881,3099.1,3097.4,1.02876164]
[1732119552696,0.79017881,3099.1,3097.9,3.0]
[1732119553008,0.79017881,3099.1,3098.0,0.3]
[1732119553184,0.79017881,3099.1,3098.0,0.55]
[1732119553660,0.79017881,3099.1,3097.9,0.55]
[1732119553861,0.79017881,3099.1,3097.0,0.7929]
[1732119554501,0.7597,3098.9,3097.1,0.03228177]
[1732119554708,0.7597,3098.7,3097.1,0.03228177]
[1732119555060,0.02467881,3098.6,3097.2,0.55]
[1732119555300,0.7597,3098.7,3097.7,0.55]
[1732119555669,0.02467881,3099.5,3097.7,0.55]
[1732119555670,0.02467881,3099.5,3098.0,0.55]
[1732119555876,0.7865,3099.4,3098.3,0.55]
[1732119556274,0.7865,3099.4,3098.4,3.0]
[1732119556477,0.7865,3099.4,3098.5,1.6421]
[1732119557064,0.7865,3099.4,3098.7,0.55]
[1732119557390,0.7998,3100.7,3098.8,0.03226649]
[1732119557596,0.7998,3100.5,3098.9,3.0]
[1732119557794,0.7998,3100.3,3099.0,0.55]
[1732119558110,0.02467881,3100.2,3098.9,3.0]
[1732119558319,0.02467881,3100.2,3099.1,0.55]
[1732119558670,0.7652,3100.1,3099.2,0.03226149]
[1732119558871,0.7652,3100.1,3098.6,0.03226145]
[1732119559069,0.7652,3100.1,3099.2,0.7638]
[1732119559346,0.7652,3100.1,3099.4,0.55]
[1732119559626,0.7652,3100.1,3099.2,0.7638]
[1732119559627,0.7652,3100.1,3099.6,0.55]
[1732119559967,0.8271,3101.3,3099.5,0.55]
[1732119560167,0.85177881,3101.2,3099.5,0.85322603]
[1732119560414,0.85177881,3101.2,3099.4,0.03226032]
[1732119560415,0.85177881,3101.2,3099.7,0.55]
[1732119560610,0.85177881,3101.2,3099.7,0.905]
[1732119561111,0.85177881,3101.2,3099.7,0.55]
[1732119561483,0.85177881,3101.2,3099.2,0.7638]
[1732119561484,0.8271,3101.2,3099.2,0.7638]
[1732119561634,0.7807,3101.0,3098.9,0.8268]
[1732119561949,0.7807,3100.8,3099.0,0.03226147]
[1732119562234,3.630829,3101.1,3098.9,0.8268]
[1732119562235,0.7807,3100.6,3098.9,0.8268]
[1732119562440,0.7807,3100.4,3098.9,0.8268]
[1732119562588,0.80537881,3100.3,3098.9,0.8268]
[1732119563214,0.7807,3100.3,3099.0,0.03226147]
[1732119563410,0.7807,3100.3,3099.1,0.55]
[1732119563698,0.851779,3102.2,3099.8,0.55]
[1732119563699,0.7745,3101.1,3099.8,0.55]
[1732119564038,0.7745,3101.1,3100.0,0.55]
[1732119564240,0.02467881,3101.0,3099.8,0.55]
[1732119564648,0.7724,3100.9,3099.6,3.0]
[1732119564802,0.7724,3100.7,3099.6,3.0]
[1732119564997,0.02467881,3100.6,3099.1,0.789]
[1732119565269,0.7724,3100.5,3099.1,0.789]
[1732119565550,0.02467881,3100.4,3099.1,0.789]
[1732119565735,0.7724,3100.5,3099.2,0.03226126]
[1732119565925,0.02467881,3100.4,3099.4,3.0]
[1732119566130,0.7724,3100.5,3099.4,3.30322613]
[1732119566313,0.7724,3100.5,3099.5,0.55]
[1732119566515,0.7724,3100.5,3099.4,0.30322613]
[1732119566516,0.7724,3100.5,3099.4,3.0]
[1732119566829,0.7724,3100.5,3099.5,0.55]
[1732119567012,0.02467881,3100.4,3099.5,0.55]
[1732119567207,0.7724,3100.5,3099.6,0.03225627]
[1732119567522,0.7724,3100.5,3099.7,0.55]
[1732119568106,0.7866,3100.8,3100.0,0.55]
[1732119568552,0.7866,3100.8,3100.2,0.55]
[1732119568711,0.02467881,3102.0,3100.0,0.55]
[1732119568712,0.7866,3101.9,3100.0,0.55]
[1732119568910,0.7866,3101.7,3100.2,0.55]
[1732119569112,0.02467881,3101.6,3100.2,0.55]
[1732119569357,0.02467881,3101.6,3100.0,0.55]
[1732119569358,0.7866,3101.5,3100.0,0.55]
[1732119569550,0.7822,3101.3,3100.0,0.55]
[1732119569752,0.7822,3101.1,3099.8,3.0]
[1732119570055,0.7822,3100.9,3098.8,0.7513]
[1732119570257,0.02,3101.4,3098.9,0.03226119]
[1732119570258,0.7822,3100.7,3098.9,0.03226119]
[1732119570431,0.7822,3100.5,3098.9,0.03226119]
[1732119570628,0.02467881,3100.4,3098.9,0.03226119]
[1732119570954,0.7822,3100.3,3098.9,0.03226119]
[1732119571663,0.7822,3100.3,3099.2,3.0]
[1732119571869,0.7822,3100.3,3099.2,0.03225819]
[1732119572455,0.7822,3100.3,3099.3,0.55]
[1732119572776,0.7822,3100.3,3099.3,0.90822582]
[1732119572969,0.7822,3100.3,3099.2,0.03225819]
[1732119572970,0.7822,3100.3,3099.5,0.55]
[1732119573169,0.7822,3100.3,3099.5,3.55]
[1732119573474,0.7822,3100.3,3099.6,0.55]
[1732119574576,0.7822,3100.3,3099.9,0.321]
[1732119574930,0.7822,3100.3,3100.0,0.321]
[1732119575130,0.7539,3101.4,3100.1,0.55]
[1732119575346,0.7539,3101.2,3100.2,0.321]
[1732119575646,0.7539,3101.2,3100.5,0.55]
[1732119576347,0.7539,3101.2,3100.6,0.321]
[1732119576852,0.7539,3101.2,3100.8,0.321]
[1732119577386,0.02467881,3102.1,3100.9,0.871]
[1732119577545,0.768,3102.0,3101.0,0.871]
[1732119577745,0.768,3102.0,3100.7,0.871]
[1732119578180,0.02467881,3101.9,3100.7,0.871]
[1732119578392,0.8147,3101.8,3100.6,3.55]
[1732119578547,0.8147,3101.6,3100.5,0.03224298]
[1732119578750,0.83937881,3101.5,3100.1,0.321]
[1732119579062,0.8147,3101.5,3100.2,3.35324558]
[1732119579270,0.8147,3101.5,3100.4,0.321]
[1732119579448,0.8147,3101.5,3100.3,0.33532456]
[1732119579651,0.8147,3101.5,3100.4,0.03224561]
[1732119579851,0.8147,3101.5,3100.5,0.55]
[1732119580457,0.8147,3101.5,3100.3,0.55]
[1732119580655,0.8147,3101.5,3100.4,0.03224558]
[1732119580965,0.7614,3101.3,3099.9,0.03224891]
[1732119581184,0.7614,3101.1,3099.9,0.03224891]
[1732119581351,0.02467881,3101.0,3100.2,3.0]
[1732119581555,0.02467881,3101.0,3100.3,0.3]
[1732119581756,0.7614,3101.1,3100.2,3.0]
[1732119581956,0.7614,3101.1,3100.3,0.03225047]
[1732119582201,0.7614,3101.1,3100.4,0.30322505]
[1732119582372,0.7614,3101.1,3100.4,0.55]
[1732119582552,0.7614,3102.2,3100.4,0.55]
[1732119582755,0.7614,3102.0,3100.6,3.0]
[1732119582956,0.7614,3101.8,3100.8,0.55]
[1732119583197,0.02467881,3101.7,3100.8,0.55]
[1732119583409,0.02467881,3101.7,3100.7,0.55]
[1732119583561,0.02467881,3101.7,3100.7,0.3]
[1732119583752,0.02467881,3101.7,3100.7,0.55]
[1732119583980,0.7614,3101.8,3100.8,0.03224556]
[1732119584295,0.7614,3101.8,3100.9,0.55]
[1732119585087,0.7614,3101.8,3100.9,0.90822456]
[1732119586525,0.7614,3101.8,3100.7,3.0]
[1732119586805,0.8209,3101.6,3099.2,0.01]
[1732119587008,0.83127881,3101.5,3099.6,0.41887643]
[1732119587301,0.83127881,3101.5,3099.6,0.89725677]
[1732119587514,0.8066,3100.8,3099.6,0.45112976]
[1732119587656,0.8066,3100.8,3099.7,0.41887643]
[1732119587657,0.02467881,3100.7,3099.7,0.41887643]
[1732119587861,0.02467881,3100.7,3099.3,0.752]
[1732119588085,0.7698,3100.6,3099.4,0.03225631]
[1732119588402,0.7698,3100.6,3099.4,0.89725975]
[1732119588586,0.7698,3100.6,3099.5,0.16492598]
[1732119588806,0.7698,3100.6,3099.6,0.03225448]
[1732119588963,0.7698,3100.6,3099.6,0.89725792]
[1732119589166,4.803,3100.9,3099.8,0.55]
[1732119589361,4.0,3100.9,3100.4,0.55]
[1732119589874,4.0,3100.9,3100.3,0.55]
[1732119590071,4.0,3100.9,3100.3,3.58224652]
[1732119590278,4.0,3100.9,3100.5,0.55]
[1732119590486,4.0,3100.9,3100.4,0.55]
[1732119590662,4.0,3100.9,3100.5,3.0]
[1732119590866,4.0,3100.9,3100.6,0.85]
[1732119591102,4.0,3100.9,3100.2,0.81394725]
[1732119591103,4.0,3100.9,3100.5,3.0]
[1732119591274,4.0,3100.9,3100.6,0.55]
[1732119591716,4.0,3100.9,3100.7,0.355]
[1732119592149,4.0,3100.9,3100.8,0.55]
[1732119592615,4.0,3100.9,3100.7,0.55]
[1732119593114,4.0,3100.9,3100.8,0.7881]
[1732119593458,4.0,3100.9,3100.8,1.51974719]
[1732119594451,4.0,3100.9,3100.8,1.84074719]
[1732119594745,4.0,3100.9,3100.8,1.51974719]
[1732119595131,3.02725098,3100.9,3100.8,7.67573762]
[1732119595364,3.02725098,3100.9,3100.8,1.93862362]
[1732119595642,3.02725098,3100.9,3100.8,1.51974719]
[1732119596217,3.02725098,3100.9,3100.8,1.93862362]
[1732119596626,3.02725098,3100.9,3100.8,0.73164719]
[1732119596825,3.02725098,3100.9,3100.5,0.8111]
[1732119597022,3.02725098,3100.9,3100.1,0.03224524]
[1732119597855,3.02725098,3100.9,3100.1,0.45112167]
[1732119598016,3.02725098,3100.9,3100.2,0.86500344]
[1732119598211,3.02725098,3100.9,3100.3,0.03224624]
[1732119598431,3.02725098,3100.9,3100.4,0.86500344]
[1732119598613,3.02725098,3100.9,3100.6,0.55]
[1732119598837,3.02725098,3100.9,3100.8,0.55]
[1732119600153,0.16539856,3102.7,3101.5,5.76274902]
[1732119600369,0.02467881,3103.0,3101.7,0.55]
[1732119600586,0.8024,3102.9,3101.9,0.55]
[1732119600944,0.8024,3102.9,3102.1,0.55]
[1732119601293,0.8024,3102.9,3102.3,0.55]
[1732119601845,0.8024,3102.9,3102.3,0.35822265]
[1732119602192,0.8024,3102.9,3102.3,0.55]
[1732119602374,0.1399906,3103.2,3102.5,0.55]
[1732119602584,0.1399906,3103.2,3102.5,0.58222377]
[1732119602944,0.1399906,3103.2,3102.6,0.44612701]
[1732119603286,0.1399906,3103.2,3102.9,0.55]
[1732119603464,0.1399906,3103.2,3103.1,0.55]
[1732119604812,0.7594,3105.3,3103.3,0.56]
[1732119604973,0.7594,3105.3,3103.5,0.55]
[1732119605186,0.02467881,3105.2,3104.1,3.0]
[1732119605486,0.02467881,3105.2,3103.7,0.55]
[1732119605487,0.7537,3105.1,3103.9,0.55]
[1732119605692,0.02467881,3105.0,3103.9,0.96322079]
[1732119605889,0.7537,3105.1,3104.0,0.03221009]
[1732119606061,0.7537,3105.1,3104.1,0.55]
[1732119606262,0.7537,3105.1,3104.1,0.58220626]
[1732119606456,0.7537,3105.1,3104.1,1.01849689]
[1732119606724,0.7537,3105.1,3104.1,0.58220626]
[1732119607351,0.7537,3105.1,3104.1,0.55]
[1732119607521,0.7537,3104.9,3103.3,0.41887643]
[1732119607722,0.7537,3104.7,3103.8,3.0]
[1732119608057,0.8277,3104.5,3102.2,0.8072]
[1732119608360,0.85237881,3104.4,3102.5,0.41887643]
[1732119608656,0.85237881,3104.4,3102.6,0.03222147]
[1732119609014,0.8277,3104.4,3102.2,0.8072]
[1732119609376,0.8277,3104.4,3100.1,6.57293372]
[1732119609377,0.01,3103.9,3101.9,0.41887643]
[1732119609513,0.01,3103.9,3101.1,0.01]
[1732119609514,0.7886,3103.7,3101.4,0.44612701]
[1732119609710,0.7886,3103.5,3101.5,0.03223158]
[1732119609944,0.81327881,3103.4,3101.6,0.41887643]
[1732119610126,0.81327881,3103.4,3101.7,0.03223158]
[1732119610574,0.81327881,3103.4,3101.7,0.45110801]
[1732119610885,0.81327881,3103.4,3101.2,0.03223162]
[1732119611048,0.7967,3103.2,3101.3,0.86500344]
[1732119611238,0.7967,3105.3,3103.1,0.8054]
[1732119611441,0.7967,3104.7,3103.2,1.07316795]
[1732119611693,0.7967,3104.7,3102.8,0.5467108]
[1732119611980,0.7967,3104.7,3102.3,0.8054]
[1732119611981,0.7967,3104.7,3103.3,0.5367108]
[1732119612185,0.7967,3104.7,3103.5,3.0]
[1732119612478,0.7967,3104.7,3103.6,0.5367108]
[1732119613077,0.7967,3104.7,3103.7,3.04221596]
[1732119613274,0.7967,3104.7,3103.7,1.0967108]
[1732119613471,0.96387,3104.7,3103.8,0.5367108]
[1732119613793,0.96387,3104.7,3103.7,3.0]
[1732119614009,0.96387,3104.7,3102.8,0.04221843]
[1732119614259,0.8004,3104.5,3102.8,0.01]
[1732119614393,0.8004,3104.5,3102.8,0.5467108]
[1732119614593,0.8004,3104.5,3102.8,0.01]
[1732119614801,0.8004,3104.5,3102.5,0.01]
[1732119615333,0.8104,3104.4,3102.4,0.321]
[1732119615467,0.8004,3104.2,3102.2,0.01]
[1732119616619,0.8004,3103.9,3102.0,0.01]
[1732119616828,0.8004,3103.7,3101.7,0.03223113]
[1732119617112,0.8004,3103.5,3101.6,0.331]
[1732119617267,3.23233,3103.4,3101.2,0.321]
[1732119617472,0.8004,3103.1,3101.2,0.331]
[1732119617712,3.22276,3103.0,3100.8,0.331]
[1732119617930,0.7985,3102.9,3100.8,0.331]
[1732119618074,0.7985,3102.8,3100.8,0.331]
[1732119618280,3.2229,3102.8,3100.8,0.331]
[1732119618583,0.7985,3102.6,3100.8,0.331]
[1732119618772,0.7985,3102.5,3100.8,0.321]
[1732119619714,0.7985,3102.5,3101.1,0.01]
[1732119619922,0.7985,3102.5,3100.3,1.13939049]
[1732119619923,0.7985,3102.5,3101.2,3.0]
[1732119620070,0.7985,3102.5,3101.3,0.85]
[1732119620736,0.7985,3102.5,3101.7,0.55]
[1732119620873,0.7985,3102.5,3101.9,0.55]
[1732119621068,0.7985,3102.5,3101.9,3.55]
[1732119621387,0.7985,3102.5,3101.9,0.55]
[1732119621587,0.7985,3102.5,3101.9,0.905]
[1732119621789,0.7985,3102.5,3101.9,0.55]
[1732119622614,0.7985,3102.5,3100.9,0.85593837]
[1732119622817,0.7985,3102.5,3101.3,3.0]
[1732119623117,0.01,3103.1,3100.6,0.01]
[1732119623118,0.7784,3102.3,3100.6,0.01]
[1732119623322,0.400171,3102.2,3100.4,0.01]
[1732119623613,0.8323,3102.1,3100.4,0.01]
[1732119623919,0.8323,3102.1,3100.2,0.01]
[1732119624692,0.8323,3102.1,3100.3,0.03224847]
[1732119624909,0.8323,3102.1,3100.3,0.54145144]
[1732119625113,0.8323,3102.1,3100.5,0.01]
[1732119625321,0.8323,3102.1,3100.8,3.0]
[1732119625646,0.8323,3102.1,3101.0,0.55]
[1732119625923,0.8323,3102.1,3100.6,3.0]
[1732119626073,0.8323,3102.1,3100.1,0.8237]
[1732119626479,0.8323,3102.1,3100.6,3.0]
[1732119626679,0.8323,3102.1,3100.6,0.3]
[1732119626923,0.8323,3102.1,3100.6,3.0]
[1732119627137,0.7719,3102.0,3100.5,3.0]
[1732119627417,0.7719,3102.0,3100.0,0.01]
[1732119627615,0.7719,3102.0,3100.5,3.0]
[1732119627775,0.7991,3101.8,3100.5,3.0]
[1732119628113,0.7991,3101.8,3100.6,0.55]
[1732119629790,0.7991,3101.8,3100.8,0.8714]
[1732119630020,0.7991,3101.8,3101.2,0.8714]
[1732119630229,0.7991,3101.8,3101.4,0.55]
[1732119630377,0.7991,3101.8,3101.4,3.55]
[1732119630729,0.7991,3101.8,3101.3,0.8714]
[1732119631028,0.7991,3101.8,3101.5,0.55]
[1732119631522,0.7991,3101.8,3101.4,0.55]
[1732119632036,0.7991,3101.8,3101.3,0.55]
[1732119632835,0.7991,3101.8,3100.3,0.01]
[1732119632836,0.7991,3101.8,3100.1,0.3314]
[1732119633002,0.7991,3101.8,3100.1,0.3214]
[1732119633179,4.02309,3101.8,3099.7,0.3314]
[1732119633418,0.7674,3101.6,3099.7,0.3314]
[1732119633918,0.7674,3101.6,3099.8,0.50920297]
[1732119634127,0.7674,3101.6,3099.7,0.3314]
[1732119634480,0.402309,3101.7,3099.4,0.3214]
[1732119634481,0.7764,3101.4,3099.4,0.3214]
[1732119634687,0.01,3101.5,3099.4,0.3214]
[1732119634688,0.7764,3101.3,3099.6,0.01]
[1732119634981,0.7764,3101.3,3099.6,0.50920297]
[1732119635179,0.7764,3101.3,3099.5,0.1060043]
[1732119635180,0.7764,3101.3,3099.7,0.54146056]
[1732119635393,0.7764,3101.3,3099.7,0.50920297]
[1732119635929,0.7764,3101.3,3099.8,0.03225759]
[1732119636218,0.7764,3101.3,3099.9,3.0]
[1732119636425,0.7764,3101.3,3100.0,0.85]
[1732119636626,0.7764,3101.3,3100.0,0.55]
[1732119637145,0.7764,3101.3,3099.7,3.0]
[1732119637524,0.7764,3101.3,3099.4,0.84060297]
[1732119637840,0.7764,3101.3,3099.7,3.0]
[1732119638046,0.7764,3101.3,3099.8,0.3]
[1732119638246,0.7901,3101.2,3099.7,3.0]
[1732119638447,0.7901,3101.0,3099.4,0.3214]
[1732119638616,0.7901,3101.0,3099.0,0.8141]
[1732119639247,4.01514,3100.8,3098.8,0.01]
[1732119639446,0.7901,3100.7,3098.8,0.01]
[1732119639660,0.7901,3100.7,3098.8,0.03226484]
[1732119639857,0.7901,3100.7,3098.7,0.8041]
[1732119640059,0.7901,3100.5,3098.6,0.01]
[1732119640659,0.7901,3100.5,3099.1,3.0]
[1732119640831,0.7901,3100.5,3099.0,3.0]
[1732119641179,0.7901,3100.5,3099.1,0.3]
[1732119641986,0.76,3100.3,3099.0,0.55]
[1732119642341,3.01,3100.2,3098.1,0.17368723]
[1732119642676,0.76,3100.1,3098.1,0.01]
[1732119642979,0.76,3099.9,3098.1,0.55147481]
[1732119643123,0.76,3099.9,3098.5,0.01]
[1732119643328,0.76,3099.9,3098.9,0.01]
[1732119643728,0.76,3099.9,3099.1,3.0]
[1732119643944,0.76,3099.9,3099.2,0.3]
[1732119644163,0.76,3099.9,3099.3,0.55]
[1732119645275,0.76,3099.9,3099.2,0.55]
[1732119647027,0.76,3099.9,3099.1,0.55]
[1732119647235,0.76,3099.9,3099.0,0.55]
[1732119647443,0.76,3099.9,3098.8,3.0]
[1732119647675,0.76,3099.9,3098.3,0.01]
[1732119648039,0.76,3099.9,3098.3,0.04226978]
[1732119648244,0.76,3099.9,3098.3,0.55147275]
[1732119649274,0.76,3099.9,3098.7,0.55]
[1732119649631,0.76,3099.9,3098.9,0.55]
[1732119650045,0.76,3099.9,3099.1,0.3214]
[1732119650273,0.76,3099.9,3099.2,0.8714]
[1732119650688,0.76,3099.9,3099.3,0.38714]
[1732119650894,0.76,3099.9,3099.2,0.55]
[1732119651095,0.76,3099.9,3099.2,0.8714]
[1732119653209,0.76,3099.9,3098.9,3.0]
[1732119653493,0.76,3099.9,3098.8,0.3214]
[1732119653694,0.76,3099.9,3098.1,0.01]
[1732119653890,0.76,3099.9,3098.1,0.51920297]
[1732119654051,0.76,3099.9,3098.3,0.3214]
[1732119655285,0.76,3099.9,3098.0,0.01]
[1732119655715,0.76,3099.9,3098.4,3.0]
[1732119656006,0.76,3099.9,3098.5,0.55]
[1732119656313,0.7702,3099.7,3098.5,0.55]
[1732119656662,0.7702,3099.7,3098.3,0.55]
[1732119656917,0.8094,3099.7,3098.0,0.55]
[1732119657216,0.8094,3099.0,3097.1,0.8036]
[1732119657413,0.8094,3099.0,3096.9,0.01]
[1732119657712,3.8094,3099.0,3096.9,0.01]
[1732119658016,3.22616,3099.7,3096.9,0.01]
[1732119658017,0.01,3100.1,3098.0,0.01]
[1732119658178,0.7982,3100.0,3098.2,0.3214]
[1732119658381,0.7982,3100.0,3098.1,0.49146882]
[1732119658382,0.7982,3100.0,3098.4,0.3214]
[1732119658585,0.7982,3100.0,3098.5,0.03226979]
[1732119658789,0.7982,3100.0,3098.5,0.04226979]
[1732119658980,0.7982,3100.0,3098.6,0.97842268]
[1732119659193,0.7982,3100.0,3098.9,0.55]
[1732119659595,0.7982,3100.0,3098.8,3.0]
[1732119660111,0.7982,3100.0,3098.2,0.49146882]
[1732119660324,0.7595,3099.8,3098.4,3.0]
[1732119660529,0.7695,3099.8,3098.2,0.49146882]
[1732119660728,0.7595,3099.6,3097.8,0.01]
[1732119661018,0.7595,3099.6,3097.9,0.56009495]
[1732119661319,0.7595,3099.6,3098.2,0.01]
[1732119661472,0.7595,3099.6,3098.3,0.56009495]
[1732119661674,0.7595,3099.6,3098.4,3.85547141]
[1732119662014,0.7595,3099.6,3098.6,0.55]
[1732119663162,0.7595,3099.6,3098.2,0.55]
[1732119663388,0.7595,3099.6,3097.7,0.7967]
[1732119663523,0.7595,3099.6,3097.4,0.01]
[1732119663870,0.7595,3099.6,3097.7,0.52440225]
[1732119664838,0.7595,3099.6,3097.7,3.52440225]
[1732119665033,0.7595,3099.6,3097.8,0.35244023]
[1732119665238,0.7878,3099.4,3097.9,0.55]
[1732119665534,0.01,3099.3,3097.2,0.01]
[1732119665735,0.7878,3099.1,3097.2,0.52440225]
[1732119666055,0.301,3099.2,3097.0,0.01]
[1732119666056,0.7626,3098.9,3097.0,0.03228278]
[1732119666226,0.7626,3098.9,3096.8,0.01]
[1732119666422,0.7626,3098.9,3096.5,0.03228508]
[1732119666423,0.7626,3098.9,3097.3,0.01]
[1732119666628,0.7626,3098.9,3096.9,0.98510985]
[1732119666629,0.7626,3098.9,3097.2,0.8154]
[1732119666872,0.7626,3098.9,3097.3,0.55668439]
[1732119667397,0.7626,3098.9,3097.5,0.55]
[1732119667600,0.8035,3100.5,3098.0,0.01]
[1732119667806,0.8035,3100.5,3098.7,0.55]
[1732119667987,0.8035,3100.5,3098.9,0.55]
[1732119668319,0.8035,3100.5,3099.0,0.52440225]
[1732119668471,0.8035,3100.5,3099.1,0.55]
[1732119668674,0.7794,3100.2,3098.2,0.55]
[1732119669000,0.77,3100.0,3098.0,3.56]
[1732119669184,0.77,3100.0,3098.3,0.55]
[1732119669697,0.76,3102.2,3097.5,0.01]
[1732119669698,0.77,3099.6,3097.5,0.01]
[1732119669896,0.77,3099.6,3098.2,0.01]
[1732119670068,0.77,3099.6,3098.3,0.52440225]
[1732119670274,0.77,3099.6,3098.4,0.0422714]
[1732119670628,0.77,3099.6,3098.7,0.01]
[1732119670932,0.77,3099.6,3098.8,0.3214]
[1732119671135,0.77,3099.6,3098.9,0.58226619]
[1732119671339,0.77,3099.6,3097.5,0.01]
[1732119671697,3.22643,3099.4,3097.2,0.01]
[1732119671908,0.8064,3099.2,3097.1,0.79127741]
[1732119672126,0.8064,3099.2,3097.1,0.769]
[1732119672487,0.8064,3099.2,3097.1,0.01]
[1732119672687,6.22651,3099.4,3096.4,0.35368011]
[1732119672688,0.01,3099.1,3096.8,0.3214]
[1732119672892,3.0,3099.4,3096.4,0.01]
[1732119672893,0.8298,3098.7,3096.4,0.01]
[1732119673133,3.22723,3098.7,3096.4,0.01]
[1732119673331,0.8298,3098.5,3096.4,0.01]
[1732119673633,0.8298,3098.5,3096.3,0.8069]
[1732119673831,3.22755,3098.4,3096.2,0.01]
[1732119674008,0.8124,3098.3,3096.2,0.01]
[1732119674204,0.8124,3098.1,3096.0,0.01]
[1732119674737,0.8124,3097.7,3096.0,0.42022691]
[1732119675037,0.8124,3097.7,3095.6,0.4607076]
[1732119675038,0.8124,3097.7,3096.2,0.01]
[1732119675208,0.8124,3097.7,3096.4,0.01]
[1732119675911,0.8124,3097.7,3095.9,0.01]
[1732119676106,0.8124,3097.7,3096.1,0.01]
[1732119676512,0.8124,3097.7,3095.8,0.01]
[1732119676714,0.8124,3097.7,3095.5,0.8302933]
[1732119677043,3.0,3097.8,3095.3,0.01]
[1732119677044,0.8256,3097.4,3095.3,0.01]
[1732119677195,0.8256,3097.4,3095.6,0.01]
[1732119677629,0.8256,3097.4,3095.6,0.0422985]
[1732119678333,0.8256,3097.4,3095.6,0.38753657]
[1732119678643,0.8256,3097.4,3095.7,0.55]
[1732119678845,0.8256,3097.4,3095.7,3.0]
[1732119679147,0.8256,3097.4,3095.4,3.0]
[1732119679328,0.8256,3097.4,3094.9,0.57464613]
[1732119679329,4.04371,3096.9,3094.5,0.01]
[1732119679640,0.8146,3096.9,3094.5,0.01]
[1732119680049,0.8146,3096.9,3094.5,0.40955805]
[1732119680197,0.8146,3096.7,3094.6,0.0323093]
[1732119680829,0.8146,3096.7,3094.7,0.55]
[1732119681047,0.8146,3096.7,3095.3,0.01]
[1732119681504,0.8146,3096.7,3095.4,0.55]
[1732119681709,0.8146,3096.7,3095.2,0.01]
[1732119681972,0.8146,3096.7,3095.1,0.55]
[1732119682244,0.8146,3096.7,3095.0,3.01]
[1732119682245,0.8146,3096.7,3095.3,0.55]
[1732119682650,0.8146,3096.7,3095.1,0.55]
[1732119682809,0.8146,3096.7,3095.3,0.55]
[1732119683350,0.8146,3096.7,3095.5,0.55]
[1732119683553,0.8146,3096.7,3095.7,0.55]
[1732119683756,0.8146,3096.7,3095.9,0.56]
[1732119683908,0.8146,3096.7,3095.9,0.55]
[1732119684106,0.8146,3096.7,3095.6,3.01]
[1732119684107,0.8146,3096.7,3095.7,0.55]
[1732119684846,0.8146,3096.7,3095.9,0.55]
[1732119685163,0.8146,3096.7,3095.7,0.55]
[1732119685443,0.8146,3096.7,3095.8,0.356]
[1732119685964,0.8146,3096.7,3095.3,0.01]